fUSD/lending_fUSD_20260405
["ID","MTS","AMOUNT","RATE_DAILY","PERIOD"]
[419739479,1775347219074,150.0,9.623e-05,2]
[419739490,1775347400607,1000.0,0.00016101,120]
[419739498,1775347831776,-275.75,9.921e-05,2]
[419739499,1775347831886,-224.25,9.921e-05,2]
[419739500,1775347831896,-500.0,9.921e-05,2]
[419739501,1775347831906,-477.87246848,9.921e-05,2]
[419739502,1775347831915,-494.53,9.921e-05,2]
[419739503,1775347831924,-1232.86718782,0.0001,2]
[419739504,1775347831934,-1200.0,0.00010261,2]
[419739505,1775347831943,-494.53,0.00010263,2]
[419739506,1775347831952,-300.0,0.00010604,2]
[419739507,1775347831961,-494.53,0.00010605,2]
[419739508,1775347831971,-250.0,0.00010913,2]
[419739509,1775347831980,-494.53,0.00010947,2]
[419739510,1775347831989,-1680.0,0.00011287,2]
[419739511,1775347831999,-494.53,0.00011289,2]
[419739512,1775347832010,-2616.82,0.00011507,2]
[419739513,1775347832020,-494.53,0.00011632,2]
[419739514,1775347832029,-163.0,0.00011658,2]
[419739515,1775347832039,-1051.51,0.0001169,2]
[419739516,1775347832048,-487.0,0.00011709,2]
[419739517,1775347832058,-380.81489818,0.00011783,2]
[419739519,1775347832068,-279.30287436,0.00011783,2]
[419739521,1775347832079,-30463.30220519,0.00011783,2]
[419739523,1775347832088,-200.0,0.000118,4]
[419739525,1775347832098,-390.0,0.00011807,2]
[419739527,1775347832107,-391.98897865,0.0001183,2]
[419739529,1775347832117,-1933.0,0.0001186,2]
[419739530,1775347832126,-1024.88946416,0.0001187,2]
[419739532,1775347832134,-34690.17597609,0.0001188,2]
[419739537,1775347832508,-404.30213,0.0001188,2]
[419739538,1775347832519,-2072.84178342,0.0001188,2]
[419739539,1775347832534,-1424.51542341,0.0001188,2]
[419739540,1775347832545,-665.72995843,0.0001188,2]
[419739541,1775347832556,-190280.9885722,0.0001188,2]
[419739542,1775347832568,-97938.43211877,0.0001188,2]
[419739543,1775347832582,-1254.41808677,0.0001188,2]
[419739560,1775347838491,-629.949,0.00011515,2]
[419739562,1775347838503,-344.051,0.00011515,2]
[419739563,1775347838512,-160.949,0.00011879,2]
[419739566,1775347838523,-339.051,0.00011879,2]
[419739568,1775347838532,-500.0,0.00011879,2]
[419739570,1775347838541,-500.0,0.00011879,2]
[419739572,1775347838550,-500.0,0.00011879,2]
[419739574,1775347838559,-500.0,0.00011879,2]
[419739576,1775347838568,-500.0,0.00011879,2]
[419739577,1775347838577,-500.0,0.00011879,2]
[419739579,1775347838586,-500.0,0.00011879,2]
[419739581,1775347838595,-500.0,0.00011879,2]
[419739583,1775347838604,-500.0,0.00011879,2]
[419739585,1775347838613,-500.0,0.00011879,2]
[419739587,1775347838622,-500.0,0.00011879,2]
[419739589,1775347838631,-500.0,0.00011879,2]
[419739591,1775347838640,-500.0,0.00011879,2]
[419739593,1775347838649,-500.0,0.00011879,2]
[419739595,1775347838658,-500.0,0.00011879,2]
[419739597,1775347838667,-500.0,0.00011879,2]
[419739599,1775347838676,-500.0,0.00011879,2]
[419739601,1775347838685,-500.0,0.00011879,2]
[419739603,1775347838693,-500.0,0.00011879,2]
[419739605,1775347838702,-500.0,0.00011879,2]
[419739607,1775347838711,-500.0,0.00011879,2]
[419739609,1775347838720,-500.0,0.00011879,2]
[419739611,1775347838730,-500.0,0.00011879,2]
[419739613,1775347838739,-150.0,0.00011879,2]
[419739615,1775347838750,-500.0,0.00011879,2]
[419739617,1775347838759,-1231300.33605091,0.0001188,2]
[419739619,1775347838768,-300.0,0.00011883,2]
[419739621,1775347838777,-400.0,0.000119,4]
[419739623,1775347838786,-150.0,0.00011973,2]
[419739625,1775347838796,-494.53,0.00011974,2]
[419739627,1775347838805,-7738.97,0.00011974,2]
[419739629,1775347838814,-150.99,0.00011974,2]
[419739631,1775347838823,-518.09,0.00011974,2]
[419739633,1775347838832,-5377.52,0.00011974,2]
[419739635,1775347838842,-150.99,0.00011974,2]
[419739637,1775347838850,-727.25,0.00011974,2]
[419739639,1775347838859,-600.0,0.00011977,2]
[419739641,1775347838868,-375.11,0.00011977,2]
[419739643,1775347838877,-11504.88,0.0001198,2]
[419739645,1775347838887,-4340.71,0.00012087,2]
[419739647,1775347838896,-1273.17,0.00012125,2]
[419739648,1775347838905,-696.64146162,0.00012169,2]
[419739649,1775347838915,-611.77934941,0.00012204,2]
[419739650,1775347838924,-256.34,0.00012205,2]
[419739651,1775347838934,-30463.3022051,0.00012239,2]
[419739652,1775347838944,-500.0,0.00012296,2]
[419739653,1775347838953,-500.0,0.00012296,2]
[419739654,1775347838962,-500.0,0.00012296,2]
[419739655,1775347838971,-500.0,0.00012296,2]
[419739656,1775347838980,-500.0,0.00012296,2]
[419739657,1775347838990,-500.0,0.00012296,2]
[419739658,1775347838999,-500.0,0.00012296,2]
[419739659,1775347839008,-500.0,0.00012296,2]
[419739660,1775347839017,-500.0,0.00012296,2]
[419739661,1775347839026,-200.0,0.00012296,2]
[419739662,1775347839036,-500.0,0.00012296,2]
[419739663,1775347839045,-500.0,0.00012296,2]
[419739664,1775347839054,-500.0,0.00012296,2]
[419739665,1775347839064,-500.0,0.00012296,2]
[419739666,1775347839073,-151.0,0.00012296,2]
[419739667,1775347839083,-153.43679859,0.00012296,2]
[419739668,1775347839092,-151.0,0.00012296,2]
[419739669,1775347839101,-151.0,0.00012296,2]
[419739670,1775347839110,-151.0,0.00012296,2]
[419739671,1775347839119,-151.0,0.00012296,2]
[419739672,1775347839129,-151.0,0.00012296,2]
[419739673,1775347839138,-151.0,0.00012296,2]
[419739674,1775347839147,-151.0,0.00012296,2]
[419739675,1775347839156,-151.0,0.00012296,2]
[419739676,1775347839166,-151.0,0.00012296,2]
[419739677,1775347839175,-500.0,0.00012296,2]
[419739678,1775347839184,-151.0,0.00012296,2]
[419739679,1775347839193,-500.0,0.00012296,2]
[419739680,1775347839204,-151.0,0.00012296,2]
[419739681,1775347839214,-500.0,0.00012296,2]
[419739682,1775347839223,-500.0,0.00012296,2]
[419739683,1775347839232,-500.0,0.00012296,2]
[419739684,1775347839241,-151.0,0.00012296,2]
[419739685,1775347839251,-1386.78395259,0.00012296,2]
[419739686,1775347839260,-151.0,0.00012296,2]
[419739687,1775347839269,-2074.24,0.00012304,2]
[419739688,1775347839279,-166.7,0.00012313,2]
[419739689,1775347839287,-494.53,0.00012316,2]
[419739690,1775347839296,-1500.0,0.00012383,2]
[419739691,1775347839306,-150.0,0.00012383,2]
[419739692,1775347839315,-2351.0,0.00012416,2]
[419739693,1775347839324,-1013.5043776,0.00012477,2]
[419739694,1775347839333,-309.8604162,0.000125,2]
[419739695,1775347839343,-500.0,0.0001257,2]
[419739696,1775347839352,-494.53,0.00012658,2]
[419739697,1775347839361,-30463.3022051,0.00012694,2]
[419739698,1775347839370,-752.0,0.00012697,2]
[419739699,1775347839379,-500.0,0.00012844,2]
[419739700,1775347839388,-200.0,0.00012844,2]
[419739701,1775347839397,-1438.09495884,0.00012844,2]
[419739702,1775347839406,-151.0,0.00012844,2]
[419739703,1775347839415,-600.0,0.000129,4]
[419739704,1775347839424,-1236.71822228,0.00012935,2]
[419739705,1775347839434,-84899.35359908,0.00012999,2]
[419739706,1775347839443,-250.0,0.00013,2]
[419739707,1775347839452,-5650.54444565,0.00013,2]
[419739708,1775347839461,-1809.16663198,0.00013,15]
[419739709,1775347839470,-494.53,0.00013,2]
[419739710,1775347839480,-1000.0,0.00013021,2]
[419739711,1775347839489,-1056.66,0.00013022,2]
[419739712,1775347839498,-5389.8813808,0.0001305,2]
[419739713,1775347839507,-255.0,0.0001305,2]
[419739714,1775347839516,-500.0,0.00013118,2]
[419739715,1775347839526,-30463.3022051,0.0001315,2]
[419739716,1775347839535,-158421.69469159,0.00013325,2]
[419739717,1775347839600,-254.18043806,0.00013325,2]
[419739718,1775347839623,-223967.89350034,0.00013325,2]
[419739719,1775347839634,-1358.36788851,0.00013325,2]
[419739721,1775347840688,-1115997.8634815,0.00013325,2]
[419739722,1775347840697,-600.0,0.00013325,2]
[419739723,1775347840706,-414.96680186,0.00013392,2]
[419739724,1775347840715,-1491.30447232,0.00013392,2]
[419739725,1775347840725,-151.0,0.00013392,2]
[419739726,1775347840734,-3240.0,0.00013425,2]
[419739727,1775347840745,-3946.3573,0.00013498,2]
[419739728,1775347840754,-2500.0,0.00013498,2]
[419739729,1775347840764,-757.16702666,0.00013499,2]
[419739730,1775347840774,-153.37386469,0.00013499,2]
[419739731,1775347840785,-24400.70581365,0.000135,2]
[419739732,1775347840796,-561.15928237,0.000135,2]
[419739733,1775347840806,-448.989,0.00013562,2]
[419739734,1775347840816,-500.0,0.00013573,2]
[419739735,1775347840825,-500.0,0.00013573,2]
[419739736,1775347840835,-500.52876797,0.00013573,2]
[419739737,1775347840844,-500.0,0.00013573,2]
[419739738,1775347840853,-500.0,0.00013573,2]
[419739739,1775347840862,-500.0,0.00013573,2]
[419739740,1775347840871,-500.0,0.00013573,2]
[419739741,1775347840880,-500.0,0.00013573,2]
[419739742,1775347840889,-500.0,0.00013573,2]
[419739743,1775347840898,-500.0,0.00013573,2]
[419739744,1775347840907,-500.0,0.00013573,2]
[419739745,1775347840917,-500.0,0.00013573,2]
[419739746,1775347840927,-1081.02230804,0.00013597,3]
[419739747,1775347840937,-2800.0,0.000136,4]
[419739748,1775347840947,-30463.3022051,0.00013605,2]
[419739749,1775347840956,-3292.0,0.00013657,2]
[419739750,1775347840965,-500.0,0.00013698,2]
[419739751,1775347840974,-500.0,0.00013698,2]
[419739752,1775347840983,-500.0,0.00013698,2]
[419739753,1775347840992,-500.0,0.00013698,2]
[419739754,1775347841001,-500.0,0.00013698,2]
[419739755,1775347841011,-500.0,0.00013698,2]
[419739756,1775347841020,-500.0,0.00013698,2]
[419739757,1775347841030,-500.0,0.00013698,2]
[419739758,1775347841040,-500.0,0.00013698,2]
[419739759,1775347841050,-500.0,0.00013698,2]
[419739760,1775347841060,-500.0,0.00013698,2]
[419739761,1775347841070,-500.0,0.00013698,2]
[419739762,1775347841080,-500.0,0.00013698,2]
[419739763,1775347841089,-794.38,0.00013698,2]
[419739764,1775347841098,-794.38,0.00013698,2]
[419739765,1775347841108,-794.38,0.00013698,2]
[419739766,1775347841117,-794.38,0.00013698,2]
[419739767,1775347841127,-794.38,0.00013698,2]
[419739768,1775347841136,-794.38,0.00013698,2]
[419739769,1775347841145,-794.38,0.00013698,2]
[419739770,1775347841154,-500.0,0.00013698,2]
[419739771,1775347841163,-500.0,0.00013698,2]
[419739772,1775347841172,-500.0,0.00013698,2]
[419739773,1775347841182,-500.0,0.00013698,2]
[419739774,1775347841192,-500.0,0.00013698,2]
[419739775,1775347841201,-500.0,0.00013698,2]
[419739776,1775347841211,-500.0,0.00013698,2]
[419739777,1775347841221,-500.0,0.00013698,2]
[419739778,1775347841231,-500.0,0.00013698,2]
[419739779,1775347841241,-500.0,0.00013698,2]
[419739780,1775347841250,-500.0,0.00013698,2]
[419739781,1775347841260,-500.0,0.00013698,2]
[419739782,1775347841270,-500.0,0.00013698,2]
[419739783,1775347841279,-500.0,0.00013698,2]
[419739784,1775347841289,-500.0,0.00013698,2]
[419739785,1775347841299,-500.0,0.00013698,2]
[419739786,1775347841310,-500.0,0.00013698,2]
[419739787,1775347841320,-500.0,0.00013698,2]
[419739788,1775347841330,-507.66281722,0.00013698,2]
[419739789,1775347841340,-500.0,0.00013698,2]
[419739790,1775347841352,-500.0,0.00013698,2]
[419739791,1775347841361,-500.0,0.00013698,2]
[419739792,1775347841371,-500.0,0.00013698,2]
[419739793,1775347841381,-500.0,0.00013698,2]
[419739794,1775347841391,-500.0,0.00013698,2]
[419739795,1775347841401,-500.0,0.00013698,2]
[419739796,1775347841411,-789.72,0.00013698,2]
[419739797,1775347841422,-789.72,0.00013698,2]
[419739798,1775347841433,-789.72,0.00013698,2]
[419739799,1775347841443,-789.72,0.00013698,2]
[419739800,1775347841452,-789.72,0.00013698,2]
[419739801,1775347841462,-789.72,0.00013698,2]
[419739802,1775347841471,-505.68583514,0.00013698,2]
[419739803,1775347841481,-500.0,0.00013698,2]
[419739804,1775347841490,-500.0,0.00013698,2]
[419739805,1775347841500,-500.0,0.00013698,2]
[419739806,1775347841510,-500.0,0.00013698,2]
[419739807,1775347841522,-500.0,0.00013698,2]
[419739808,1775347841531,-500.0,0.00013698,2]
[419739809,1775347841541,-500.0,0.00013698,2]
[419739810,1775347841552,-500.0,0.00013698,2]
[419739811,1775347841562,-524.62310641,0.00013698,2]
[419739812,1775347841572,-500.0,0.00013698,2]
[419739813,1775347841582,-500.0,0.00013698,2]
[419739814,1775347841592,-540.38303843,0.00013698,2]
[419739815,1775347841602,-500.0,0.00013698,2]
[419739816,1775347841612,-500.0,0.00013698,2]
[419739817,1775347841622,-500.0,0.00013698,2]
[419739818,1775347841632,-500.0,0.00013698,2]
[419739819,1775347841641,-500.0,0.00013698,2]
[419739820,1775347841650,-500.0,0.00013698,2]
[419739821,1775347841661,-500.0,0.00013698,2]
[419739822,1775347841671,-500.0,0.00013698,2]
[419739823,1775347841681,-581.88386575,0.00013698,2]
[419739824,1775347841691,-500.0,0.00013698,2]
[419739825,1775347841701,-500.0,0.00013698,2]
[419739826,1775347841711,-500.0,0.00013698,2]
[419739827,1775347841720,-500.0,0.00013698,2]
[419739828,1775347841730,-325.34166394,0.00013698,2]
[419739829,1775347841740,-500.0,0.00013698,2]
[419739830,1775347841749,-500.0,0.00013698,2]
[419739831,1775347841758,-500.0,0.00013698,2]
[419739832,1775347841768,-500.0,0.00013698,2]
[419739833,1775347841777,-500.0,0.00013698,2]
[419739834,1775347841788,-500.0,0.00013698,2]
[419739835,1775347841798,-500.0,0.00013698,2]
[419739836,1775347841809,-500.0,0.00013698,2]
[419739837,1775347841818,-500.0,0.00013698,2]
[419739838,1775347841828,-500.0,0.00013698,2]
[419739839,1775347841837,-500.0,0.00013698,2]
[419739840,1775347841846,-500.0,0.00013698,2]
[419739841,1775347841857,-500.0,0.00013698,2]
[419739842,1775347841866,-500.0,0.00013698,2]
[419739843,1775347841875,-500.0,0.00013698,2]
[419739844,1775347841884,-500.0,0.00013698,2]
[419739845,1775347841893,-500.0,0.00013698,2]
[419739846,1775347841902,-500.0,0.00013698,2]
[419739847,1775347841911,-500.0,0.00013698,2]
[419739848,1775347841920,-500.0,0.00013698,2]
[419739849,1775347841930,-500.0,0.00013698,2]
[419739850,1775347841939,-500.0,0.00013698,2]
[419739851,1775347841948,-500.0,0.00013698,2]
[419739852,1775347841957,-500.0,0.00013698,2]
[419739853,1775347841967,-500.0,0.00013698,2]
[419739854,1775347841977,-500.0,0.00013698,2]
[419739855,1775347841986,-500.0,0.00013698,2]
[419739856,1775347841997,-500.0,0.00013698,2]
[419739857,1775347842006,-500.0,0.00013698,2]
[419739858,1775347842015,-500.0,0.00013698,2]
[419739859,1775347842025,-500.0,0.00013698,2]
[419739860,1775347842034,-500.0,0.00013698,2]
[419739861,1775347842045,-500.0,0.00013698,2]
[419739862,1775347842054,-500.0,0.00013698,2]
[419739863,1775347842065,-150.0,0.00013699,2]
[419739864,1775347842074,-150.0,0.00013699,2]
[419739865,1775347842084,-150.0,0.00013699,2]
[419739866,1775347842093,-5391.41,0.00013699,2]
[419739867,1775347842102,-157.49,0.00013699,2]
[419739868,1775347842112,-167.51,0.00013699,2]
[419739869,1775347842122,-1000.0,0.00013699,2]
[419739870,1775347842132,-5700.0,0.000137,5]
[419739871,1775347842143,-250.0,0.0001373,2]
[419739872,1775347842157,-500.0,0.00013765,2]
[419739873,1775347842166,-789.72,0.00013765,2]
[419739874,1775347842176,-500.0,0.00013765,2]
[419739875,1775347842186,-500.0,0.00013765,2]
[419739876,1775347842196,-24400.70581365,0.00013767,2]
[419739877,1775347842205,-879.0,0.00013774,5]
[419739878,1775347842214,-8500.0,0.000138,5]
[419739879,1775347842224,-380.81489817,0.00013842,2]
[419739880,1775347842233,-11400.0,0.000139,5]
[419739881,1775347842243,-900.0,0.000139,5]
[419739882,1775347842252,-1067.76175541,0.0001394,2]
[419739883,1775347842262,-278.13790482,0.0001394,2]
[419739884,1775347842271,-150.0,0.00013973,2]
[419739885,1775347842281,-150.0,0.00013973,2]
[419739886,1775347842290,-150.0,0.00013973,2]
[419739887,1775347842299,-530.256229,0.00013987,2]
[419739888,1775347842312,-500.0,0.00014,2]
[419739889,1775347842321,-1500.0,0.00014,2]
[419739890,1775347842331,-9601.90631203,0.00014006,2]
[419739891,1775347842340,-1020.624204,0.00014014,2]
[419739892,1775347842349,-1439.226101,0.00014014,2]
[419739893,1775347842359,-2150.738605,0.00014014,2]
[419739894,1775347842368,-1495.33787,0.00014014,2]
[419739895,1775347842377,-451.69413,0.00014014,2]
[419739896,1775347842386,-396.647886,0.00014014,2]
[419739897,1775347842396,-1317.250794,0.00014014,2]
[419739898,1775347842405,-24400.70581365,0.00014033,2]
[419739899,1775347842415,-30463.3022051,0.00014061,2]
[419739900,1775347842424,-1000.0,0.00014121,2]
[419739901,1775347842433,-1000.0,0.00014121,2]
[419739902,1775347842442,-1000.0,0.00014121,2]
[419739903,1775347842452,-1000.0,0.00014121,2]
[419739904,1775347842461,-1000.0,0.00014121,2]
[419739906,1775347842470,-1000.0,0.00014121,2]
[419739907,1775347842479,-1000.0,0.00014121,2]
[419739908,1775347842488,-1000.0,0.00014121,2]
[419739909,1775347842497,-500.0,0.00014121,2]
[419739910,1775347842506,-10000.0,0.000142,2]
[419739911,1775347842515,-578.73530176,0.000142,2]
[419739913,1775347842525,-5340.62011418,0.000142,2]
[419739914,1775347842534,-289.10799454,0.000142,2]
[419739916,1775347842543,-433.0,0.00014224,2]
[419739918,1775347842553,-150.0,0.00014247,2]
[419739919,1775347842563,-150.0,0.00014247,2]
[419739920,1775347842572,-150.0,0.00014247,2]
[419739921,1775347842582,-164.76948202,0.00014273,2]
[419739922,1775347842591,-307.35572359,0.00014273,2]
[419739923,1775347842600,-161.88455627,0.00014273,2]
[419739924,1775347842610,-500.0,0.00014273,2]
[419739925,1775347842619,-500.0,0.00014273,2]
[419739926,1775347842628,-165.64274187,0.00014273,2]
[419739927,1775347842638,-500.0,0.00014273,2]
[419739928,1775347842647,-500.0,0.00014273,2]
[419739929,1775347842656,-500.0,0.00014273,2]
[419739930,1775347842666,-500.0,0.00014273,2]
[419739931,1775347842677,-500.0,0.00014273,2]
[419739932,1775347842686,-500.0,0.00014273,2]
[419739933,1775347842695,-385.69863661,0.00014273,2]
[419739934,1775347842704,-500.0,0.00014273,2]
[419739935,1775347842714,-500.0,0.00014273,2]
[419739936,1775347842724,-500.0,0.00014273,2]
[419739937,1775347842734,-500.0,0.00014273,2]
[419739938,1775347842743,-500.0,0.00014273,2]
[419739939,1775347842752,-500.0,0.00014273,2]
[419739940,1775347842762,-500.0,0.00014273,2]
[419739941,1775347842771,-500.0,0.00014273,2]
[419739942,1775347842781,-500.0,0.00014273,2]
[419739943,1775347842790,-500.0,0.00014273,2]
[419739945,1775347842800,-500.0,0.00014273,2]
[419739947,1775347842809,-500.0,0.00014273,2]
[419739949,1775347842818,-163.57511377,0.00014273,2]
[419739951,1775347842827,-500.0,0.00014273,2]
[419739953,1775347842836,-500.0,0.00014273,2]
[419739954,1775347842846,-500.0,0.00014273,2]
[419739955,1775347842855,-500.0,0.00014273,2]
[419739956,1775347842865,-500.0,0.00014273,2]
[419739958,1775347842874,-178.83121777,0.00014273,2]
[419739960,1775347842884,-500.0,0.00014273,2]
[419739962,1775347842893,-500.0,0.00014273,2]
[419739964,1775347842903,-500.0,0.00014273,2]
[419739966,1775347842912,-500.0,0.00014273,2]
[419739967,1775347842922,-500.66135623,0.00014273,2]
[419739968,1775347842932,-518.91238386,0.00014273,2]
[419739969,1775347842942,-500.0,0.00014273,2]
[419739970,1775347842951,-500.0,0.00014273,2]
[419739971,1775347842960,-500.0,0.00014273,2]
[419739972,1775347842970,-500.0,0.00014273,2]
[419739973,1775347842980,-500.0,0.00014273,2]
[419739974,1775347842989,-210.94513658,0.00014273,2]
[419739975,1775347842998,-500.0,0.00014273,2]
[419739976,1775347843007,-500.0,0.00014273,2]
[419739977,1775347843016,-160.71962936,0.00014273,2]
[419739978,1775347843026,-312.69903259,0.00014273,2]
[419739979,1775347843036,-515.65190416,0.00014273,2]
[419739980,1775347843045,-202.5903212,0.00014273,2]
[419739981,1775347843054,-168.6718922,0.00014273,2]
[419739982,1775347843064,-500.0,0.00014273,2]
[419739983,1775347843074,-500.0,0.00014273,2]
[419739984,1775347843084,-500.0,0.00014273,2]
[419739985,1775347843094,-500.0,0.00014273,2]
[419739986,1775347843104,-500.0,0.00014273,2]
[419739987,1775347843113,-500.0,0.00014273,2]
[419739988,1775347843123,-500.0,0.00014273,2]
[419739989,1775347843132,-500.0,0.00014273,2]
[419739990,1775347843142,-1024.88946416,0.0001429,2]
[419739991,1775347843151,-500.0,0.00014298,2]
[419739992,1775347843161,-500.0,0.00014299,2]
[419739993,1775347843170,-500.0,0.00014299,2]
[419739994,1775347843181,-500.0,0.00014299,2]
[419739995,1775347843191,-500.0,0.00014299,2]
[419739996,1775347843201,-529.28576111,0.00014299,2]
[419739997,1775347843210,-500.0,0.00014299,2]
[419739998,1775347843220,-500.0,0.00014299,2]
[419739999,1775347843229,-500.0,0.00014299,2]
[419740000,1775347843239,-500.0,0.00014299,2]
[419740001,1775347843248,-500.0,0.00014299,2]
[419740002,1775347843258,-500.0,0.00014299,2]
[419740003,1775347843267,-794.38,0.00014299,2]
[419740004,1775347843277,-794.38,0.00014299,2]
[419740005,1775347843286,-794.38,0.00014299,2]
[419740006,1775347843296,-794.38,0.00014299,2]
[419740007,1775347843305,-794.38,0.00014299,2]
[419740008,1775347843315,-794.38,0.00014299,2]
[419740009,1775347843324,-500.0,0.00014299,2]
[419740010,1775347843334,-500.0,0.00014299,2]
[419740011,1775347843344,-500.0,0.00014299,2]
[419740012,1775347843353,-500.0,0.00014299,2]
[419740013,1775347843363,-500.0,0.00014299,2]
[419740014,1775347843372,-500.0,0.00014299,2]
[419740015,1775347843382,-500.0,0.00014299,2]
[419740016,1775347843391,-500.0,0.00014299,2]
[419740017,1775347843400,-500.0,0.00014299,2]
[419740018,1775347843410,-500.0,0.00014299,2]
[419740019,1775347843420,-500.0,0.00014299,2]
[419740020,1775347843430,-500.0,0.00014299,2]
[419740021,1775347843439,-500.0,0.00014299,2]
[419740022,1775347843449,-500.0,0.00014299,2]
[419740023,1775347843458,-500.0,0.00014299,2]
[419740024,1775347843467,-500.0,0.00014299,2]
[419740025,1775347843477,-500.0,0.00014299,2]
[419740026,1775347843486,-500.0,0.00014299,2]
[419740027,1775347843496,-789.72,0.00014299,2]
[419740028,1775347843506,-789.72,0.00014299,2]
[419740029,1775347843515,-789.72,0.00014299,2]
[419740030,1775347843525,-789.72,0.00014299,2]
[419740031,1775347843534,-789.72,0.00014299,2]
[419740032,1775347843543,-789.72,0.00014299,2]
[419740033,1775347843553,-500.0,0.00014299,2]
[419740034,1775347843562,-500.0,0.00014299,2]
[419740035,1775347843571,-500.0,0.00014299,2]
[419740036,1775347843580,-500.0,0.00014299,2]
[419740037,1775347843590,-500.0,0.00014299,2]
[419740038,1775347843599,-500.0,0.00014299,2]
[419740039,1775347843608,-500.0,0.00014299,2]
[419740041,1775347843618,-500.0,0.00014299,2]
[419740043,1775347843627,-500.0,0.00014299,2]
[419740045,1775347843636,-500.0,0.00014299,2]
[419740046,1775347843645,-500.0,0.00014299,2]
[419740047,1775347843654,-500.0,0.00014299,2]
[419740048,1775347843664,-500.0,0.00014299,2]
[419740049,1775347843673,-500.0,0.00014299,2]
[419740050,1775347843683,-500.0,0.00014299,2]
[419740051,1775347843692,-500.0,0.00014299,2]
[419740052,1775347843702,-500.0,0.00014299,2]
[419740053,1775347843711,-500.0,0.00014299,2]
[419740054,1775347843721,-500.0,0.00014299,2]
[419740055,1775347843730,-372.04738968,0.00014299,2]
[419740056,1775347843740,-500.0,0.00014299,2]
[419740057,1775347843749,-500.0,0.00014299,2]
[419740058,1775347843759,-500.0,0.00014299,2]
[419740059,1775347843768,-500.0,0.00014299,2]
[419740060,1775347843778,-500.0,0.00014299,2]
[419740061,1775347843788,-500.0,0.00014299,2]
[419740062,1775347843798,-500.0,0.00014299,2]
[419740063,1775347843807,-500.0,0.00014299,2]
[419740064,1775347843817,-500.0,0.00014299,2]
[419740065,1775347843826,-500.0,0.00014299,2]
[419740066,1775347843836,-500.0,0.00014299,2]
[419740067,1775347843845,-24400.70581365,0.000143,2]
[419740068,1775347843855,-757.16702661,0.00014301,2]
[419740069,1775347843864,-5391.41,0.00014384,2]
[419740070,1775347844108,-1406.48,0.000144,2]
[419740071,1775347844118,-150.0,0.000144,2]
[419740072,1775347844127,-150.0,0.000144,2]
[419740073,1775347844136,-150.0,0.000144,2]
[419740074,1775347844146,-150.0,0.000144,2]
[419740075,1775347844155,-150.0,0.000144,2]
[419740076,1775347844164,-150.0,0.000144,2]
[419740077,1775347844173,-150.0,0.000144,2]
[419740078,1775347844183,-150.0,0.000144,2]
[419740079,1775347844192,-150.0,0.000144,2]
[419740080,1775347844202,-150.0,0.000144,2]
[419740081,1775347844211,-150.0,0.000144,2]
[419740082,1775347844221,-150.0,0.000144,2]
[419740083,1775347844230,-200.67348083,0.000144,2]